bitfinex-derivatives/quotes_ETHF0:USTF0_20241104
["timestamp","ask_amount","ask_price","bid_price","bid_amount"]
[1730749529230,0.5979,2430.1,2430.0,3.61959]
[1730749530729,0.5979,2430.1,2430.0,0.41179]
[1730749531333,1.00967,2430.1,2430.0,0.41179]
[1730749532437,0.5979,2430.1,2430.0,0.41179]
[1730749534739,0.4118,2430.0,2429.9,0.4118]
[1730749534938,1.5456,2430.0,2429.9,0.4118]
[1730749537533,1.1338,2430.0,2429.9,0.4118]
[1730749537934,40.8,2430.3,2429.8,1.02954]
[1730749538142,0.99865,2430.2,2430.1,0.41177]
[1730749538745,0.5869,2430.2,2430.1,0.41177]
[1730749539446,0.5869,2430.2,2430.1,0.98827]
[1730749540033,0.99865,2430.2,2430.1,0.98827]
[1730749540444,0.5869,2430.2,2430.1,0.98827]
[1730749540950,41.3609,2430.3,2430.2,0.41175]
[1730749541135,40.8,2430.3,2430.2,0.41175]
[1730749541341,41.21173,2430.3,2430.2,0.41175]
[1730749545642,40.8,2430.3,2430.2,0.41175]
[1730749546152,41.21173,2430.3,2430.2,0.41175]
[1730749549041,40.8,2430.3,2429.7,2.8918423]
[1730749549250,0.41179,2430.1,2430.0,0.41177]
[1730749549550,3.61959,2430.1,2430.0,0.41177]
[1730749553342,0.41179,2430.1,2430.0,0.41177]
[1730749554148,3.2078,2430.2,2429.9,1.87063775]
[1730749554451,3.2078,2430.2,2430.1,0.41177]
[1730749554648,3.2078,2430.2,2430.1,1.74650775]
[1730749555154,3.2078,2430.2,2430.1,2.24210775]
[1730749556148,3.2078,2430.2,2430.1,0.90737]
[1730749556149,3.61955,2430.2,2430.1,0.90737]
[1730749556951,0.41175,2430.2,2430.1,0.41177]
[1730749557254,0.91875,2430.2,2430.1,0.41177]
[1730749557948,0.507,2430.2,2430.1,0.41177]
[1730749558146,41.21174,2430.3,2430.0,0.496]
[1730749558147,0.41174,2430.3,2430.0,0.496]
[1730749558347,0.41174,2430.3,2430.2,0.41175]
[1730749559253,41.874,2430.4,2430.3,0.41173]
[1730749559458,42.28572,2430.4,2430.3,0.41173]
[1730749561858,41.874,2430.4,2430.3,1.74646775]
[1730749562054,41.367,2430.4,2430.3,1.74646775]
[1730749562256,41.77872,2430.4,2430.3,0.41173]
[1730749563155,46.51071,2430.4,2429.8,2.36424775]
[1730749563357,46.51071,2430.4,2429.9,0.41178]
[1730749563358,0.4118,2430.0,2429.9,0.41178]
[1730749563762,0.4118,2430.0,2429.7,0.41181]
[1730749563763,0.41183,2429.8,2429.7,0.41181]
[1730749563965,1.74656775,2429.8,2429.7,0.41181]
[1730749564267,4.95436775,2429.8,2429.7,0.41181]
[1730749565358,3.61963,2429.8,2429.7,0.41181]
[1730749567464,3.61963,2429.8,2429.4,1.7135]
[1730749567465,3.2078,2429.8,2429.4,1.7135]
[1730749567657,0.41187,2429.6,2429.5,0.41186]
[1730749567961,5.90686474,2429.8,2429.5,0.41186]
[1730749567962,6.31869474,2429.8,2429.7,0.41184]
[1730749568169,3.61963,2429.8,2429.7,0.41184]
[1730749568465,3.2078,2429.8,2429.7,0.41184]
[1730749568861,3.61962,2429.8,2429.7,0.41184]
[1730749569061,0.41187,2429.6,2429.5,0.41185]
[1730749570067,3.2078,2429.8,2429.4,1.215]
[1730749570068,5.90686474,2429.8,2429.4,1.215]
[1730749570266,0.41185,2429.7,2429.6,0.41184]
[1730749574176,3.61965,2429.7,2429.6,0.41184]
[1730749576362,0.41189,2429.5,2429.4,0.41187]
[1730749576569,8.3534,2429.7,2429.3,0.41189]
[1730749576570,0.4119,2429.4,2429.3,0.41189]
[1730749576772,0.4119,2429.4,2429.2,0.9889]
[1730749576773,0.4119,2429.3,2429.2,0.9046]
[1730749577074,0.9161,2429.3,2429.2,0.4119]
[1730749577874,0.5042,2429.3,2429.2,0.4119]
[1730749578469,0.9161,2429.3,2429.2,0.4119]
[1730749578668,0.41189,2429.4,2429.3,0.4119]
[1730749579963,1.41597,2429.5,2429.4,0.41189]
[1730749580369,1.0041,2429.5,2429.4,0.41189]
[1730749580564,1.41597,2429.5,2429.4,0.41189]
[1730749582671,0.89717,2429.5,2429.4,0.41189]
[1730749582877,0.4853,2429.5,2429.4,0.41189]
[1730749583068,0.41187,2429.6,2429.5,0.41185]
[1730749583871,4.1807,2429.7,2429.6,0.41185]
[1730749583872,4.59254,2429.7,2429.6,0.41185]
[1730749584068,8.70854,2429.7,2429.6,0.41185]
[1730749585676,4.59254,2429.7,2429.6,0.41185]
[1730749587074,3.7137,2429.7,2429.6,0.41185]
[1730749587383,3.2078,2429.7,2429.6,4.52785]
[1730749588670,3.2078,2429.7,2429.6,0.41185]
[1730749588874,41.69351,2429.9,2429.8,0.41182]
[1730749589776,41.2817,2429.9,2429.4,0.9858]
[1730749589982,0.41184,2429.8,2429.7,0.41182]
[1730749591282,0.41182,2429.8,2429.7,0.41182]
[1730749592173,41.2817,2429.9,2429.4,2.01548]
[1730749592174,43.98076474,2429.9,2429.4,0.9858]
[1730749592369,0.41187,2429.6,2429.5,0.41185]
[1730749592976,0.89967,2429.6,2429.5,0.41185]
[1730749594480,6.39776474,2429.7,2429.4,0.9858]
[1730749594783,6.80960474,2429.7,2429.6,0.41185]
[1730749595181,6.31870474,2429.7,2429.6,0.41185]
[1730749595882,3.61964,2429.7,2429.6,0.41185]
[1730749597589,0.41184,2429.7,2429.6,0.41185]
[1730749597783,3.61964,2429.7,2429.6,0.41185]
[1730749598079,6.31870474,2429.7,2429.6,0.41185]
[1730749598782,3.61964,2429.7,2429.6,0.41185]
[1730749600381,0.41183,2429.8,2429.7,0.41182]
[1730749600583,44.94406474,2429.9,2429.5,1.02966]
[1730749600584,45.35587474,2429.9,2429.8,0.41182]
[1730749600778,42.65681,2429.9,2429.8,0.41182]
[1730749602583,44.94406474,2429.9,2429.8,0.41182]
[1730749603288,0.41182,2429.8,2429.7,0.92533]
[1730749604579,3.11088474,2429.8,2429.7,0.92533]
[1730749607685,43.91086474,2429.9,2429.7,0.5135]
[1730749607885,43.49906474,2429.9,2429.8,0.41182]
[1730749608092,43.91086474,2429.9,2429.8,0.41182]
[1730749608589,43.49906474,2429.9,2429.8,0.41182]
[1730749608893,43.49906474,2429.9,2429.8,0.89792]
[1730749609188,3.11086474,2429.9,2429.8,0.89792]
[1730749612790,2.69906474,2429.9,2429.8,0.89792]
[1730749613988,3.11086474,2429.9,2429.8,0.89792]
[1730749614892,3.11086474,2429.9,2429.8,0.41182]
[1730749617288,0.41182,2429.8,2429.7,0.41182]
[1730749617492,0.41187,2429.6,2429.5,0.90496]
[1730749617694,0.41189,2429.5,2429.4,0.41188]
[1730749617900,43.91035485,2429.5,2429.4,0.41188]
[1730749618999,43.49846485,2429.5,2429.4,0.41188]
[1730749619300,40.8,2429.5,2429.4,4.52788]
[1730749619594,3.58200485,2429.7,2429.6,0.41185]
[1730749619991,44.38200485,2429.7,2429.6,0.41185]
[1730749622103,41.68354,2429.7,2429.6,0.41185]
[1730749622804,44.38157091,2429.7,2429.6,0.41185]
[1730749623011,41.68354,2429.7,2429.6,0.41185]
[1730749623213,44.89134,2429.7,2429.6,0.41185]
[1730749623511,0.41189,2429.5,2429.4,0.41186]
[1730749623710,3.11055775,2429.5,2429.4,0.41186]
[1730749624608,0.41189,2429.5,2429.4,0.41186]
[1730749625310,3.11066707,2429.5,2429.4,0.41186]
[1730749625510,0.41189,2429.5,2429.4,0.41186]
[1730749627013,2.6989791,2429.5,2429.4,0.41186]
[1730749627313,2.6989791,2429.6,2429.5,0.41187]
[1730749628010,47.1783817,2429.7,2429.6,0.41185]
[1730749628212,43.9705817,2429.7,2429.6,0.41185]
[1730749628405,43.97076177,2429.7,2429.6,0.41185]
[1730749628609,2.69906177,2429.7,2429.6,0.41185]
[1730749628808,2.69906177,2429.7,2429.6,0.87535]
[1730749629523,2.69906177,2429.9,2429.8,0.41182]
[1730749629815,6.96674273,2430.2,2429.8,0.41182]
[1730749629816,0.096,2430.2,2429.8,2.63817664]
[1730749630014,0.096,2430.4,2430.3,0.41173]
[1730749630217,4.54909,2430.6,2430.5,0.4117]
[1730749631517,4.1374,2430.6,2430.5,0.4117]
[1730749632621,4.54908,2430.6,2430.5,0.4117]
[1730749634112,0.41173,2430.4,2430.3,0.41172]
[1730749634317,2.89251224,2430.4,2429.7,4.5158]
[1730749634513,3.61958,2430.1,2430.0,0.41179]
[1730749635015,44.41958,2430.1,2430.0,0.41179]
[1730749635215,44.0078,2430.1,2430.0,0.41179]
[1730749635412,41.21177,2430.1,2430.0,0.41179]
[1730749635617,41.2777,2430.1,2430.0,0.41179]
[1730749636019,41.68947,2430.1,2430.0,0.41179]
[1730749636316,6.53998273,2430.7,2430.0,7.00771224]
[1730749636518,4.1869,2430.7,2430.6,0.41168]
[1730749636727,44.9869,2430.7,2430.6,0.41168]
[1730749636911,41.7791,2430.7,2430.6,0.41168]
[1730749637722,0.9791,2430.7,2430.6,0.41168]
[1730749638025,1.4732,2430.9,2430.8,0.41165]
[1730749638221,42.2732,2430.9,2430.8,0.41165]
[1730749638415,41.7791,2430.9,2430.8,0.41165]
[1730749643732,3.61942,2431.0,2430.6,3.30419224]
[1730749643927,0.096,2431.4,2431.3,0.41156]
[1730749644119,0.9675,2431.6,2431.5,0.41153]
[1730749644324,41.7675,2431.6,2431.5,0.41153]
[1730749645528,40.8,2431.6,2431.5,0.41153]
[1730749647327,0.096,2431.9,2431.8,0.41148]
[1730749647525,3.2078,2432.0,2431.9,0.41146]
[1730749647827,44.41925,2432.0,2431.9,0.41146]
[1730749649326,48.1198,2432.0,2431.4,0.4723]
[1730749649526,0.41149,2431.8,2431.7,0.41149]
[1730749650323,0.41148,2431.9,2431.8,0.41147]
[1730749651226,44.41926,2432.0,2431.9,0.41146]
[1730749652127,48.53126,2432.0,2431.9,0.41146]
[1730749652533,0.41147,2431.9,2431.8,0.41147]
[1730749654333,44.41925,2432.0,2431.9,0.41146]
[1730749654636,44.0078,2432.0,2431.9,0.41146]
[1730749656037,3.2078,2432.0,2431.9,0.41146]
[1730749656329,3.61925,2432.0,2431.9,0.41146]
[1730749656525,44.41925,2432.0,2431.9,0.41146]
[1730749659934,41.21145,2432.0,2431.9,0.41146]
[1730749660236,40.8,2432.0,2431.9,0.41146]
[1730749661834,41.21145,2432.0,2431.9,0.41146]
[1730749662233,40.8,2432.0,2431.9,0.41146]
[1730749663633,40.8,2432.0,2431.9,0.91096]
[1730749669642,4.1899,2432.2,2432.1,0.41143]
[1730749670036,44.9899,2432.2,2432.1,0.41143]
[1730749672243,41.7821,2432.2,2432.1,0.41143]
[1730749673148,42.19351,2432.2,2432.1,0.41143]
[1730749675641,45.8933,2432.2,2431.8,0.5108]
[1730749675949,0.41145,2432.1,2432.0,0.41143]
[1730749676341,4.52345,2432.1,2432.0,0.41143]
[1730749676551,45.32345,2432.1,2432.0,0.41143]
[1730749677548,0.41149,2431.9,2431.8,0.41147]
[1730749677748,0.4115,2431.8,2431.7,0.41149]
[1730749677947,1.862,2431.8,2431.7,0.41149]
[1730749678145,45.8698,2431.8,2431.7,0.41149]
[1730749678444,42.662,2431.8,2431.7,0.41149]
[1730749681645,0.4115,2431.7,2431.6,0.9079]
[1730749682245,0.4115,2431.7,2431.6,0.4115]
[1730749684344,42.2505,2431.8,2431.4,1.48965]
[1730749684544,42.2505,2431.8,2431.7,0.4115]
[1730749684545,42.662,2431.8,2431.7,0.4115]
[1730749685146,0.41152,2431.7,2431.6,0.41151]
[1730749686348,42.2505,2431.8,2431.4,1.48965]
[1730749686550,42.66199,2431.8,2431.7,0.4115]
[1730749688949,45.33978187,2431.8,2431.7,0.4115]
[1730749689352,42.66199,2431.8,2431.7,0.4115]
[1730749689657,45.35788003,2431.8,2431.7,0.4115]
[1730749689958,42.66199,2431.8,2431.7,0.4115]
[1730749690250,45.86979,2431.8,2431.7,0.4115]
[1730749690844,48.56595582,2431.8,2431.7,0.4115]
[1730749691155,45.86979,2431.8,2431.7,0.4115]
[1730749691357,44.9605,2431.8,2431.7,0.4115]
[1730749691656,6.38139517,2431.8,2431.7,0.4115]
[1730749692055,4.09668,2431.8,2431.7,0.4115]
[1730749692557,6.38158657,2431.8,2431.7,0.9101]
[1730749692953,3.17378657,2431.8,2431.7,0.9101]
[1730749694449,3.58526657,2431.8,2431.7,0.9101]
[1730749694858,4.09668,2431.8,2431.7,0.9101]
[1730749695059,6.79299577,2431.8,2431.7,0.9101]
[1730749695260,0.41153,2431.6,2431.5,0.41151]
[1730749695456,0.41157,2431.4,2431.3,0.41155]
[1730749695766,3.10808858,2431.4,2431.3,0.41155]
[1730749696055,3.60777437,2431.4,2431.3,0.41155]
[1730749696246,3.19620437,2431.4,2431.3,0.41155]
[1730749697653,3.60775437,2431.4,2431.3,0.41155]
[1730749699057,3.19620437,2431.4,2431.0,3.91734435]
[1730749699259,0.4116,2431.2,2431.1,0.41158]
[1730749699656,3.57137437,2431.3,2431.2,0.41158]
[1730749700154,44.37137437,2431.3,2431.2,0.41158]
[1730749700455,41.67447,2431.3,2431.2,0.41158]
[1730749701354,41.2629,2431.3,2431.2,0.41158]
[1730749701562,6.81556437,2431.4,2431.2,0.41158]
[1730749701563,6.40400437,2431.4,2431.2,4.1128]
[1730749701856,6.81555437,2431.4,2431.3,0.41156]
[1730749702052,4.11865,2431.4,2431.3,0.41156]
[1730749702263,6.81555437,2431.4,2431.3,0.41156]
[1730749702461,4.11865,2431.4,2431.3,0.41156]
[1730749704065,3.7071,2431.4,2431.3,0.41156]
[1730749704363,4.11865,2431.4,2431.3,0.41156]
[1730749704567,3.7071,2431.4,2431.3,0.41156]
[1730749705262,3.2078,2431.4,2431.3,0.41156]
[1730749708269,3.61935,2431.4,2431.3,0.41156]
[1730749708570,3.2078,2431.4,2431.3,0.41156]
[1730749709773,40.8,2431.5,2431.2,0.9707]
[1730749710070,40.8,2431.5,2431.4,0.41155]
[1730749710666,6.89820437,2431.7,2431.6,0.41151]
[1730749710858,5.90470437,2431.7,2431.6,0.41151]
[1730749711064,3.61667437,2431.9,2431.5,1.49161]
[1730749711262,3.61667437,2431.9,2431.8,0.41148]
[1730749711564,41.71977,2431.9,2431.8,0.41148]
[1730749711969,44.41260356,2431.9,2431.8,0.41148]
[1730749712362,44.41259356,2431.9,2431.8,0.41148]
[1730749713270,41.3083,2431.9,2431.8,0.41148]
[1730749713765,41.71976,2431.9,2431.8,0.41148]
[1730749714074,41.3083,2431.9,2431.8,0.41148]
[1730749714467,44.41259356,2431.9,2431.8,0.41148]
[1730749715573,47.62039356,2431.9,2431.8,0.41148]
[1730749716275,0.4115,2431.8,2431.7,0.41149]
[1730749716473,3.1051856,2431.8,2431.7,0.41149]
[1730749717178,0.4115,2431.8,2431.7,0.41149]
[1730749717369,3.10535272,2431.8,2431.7,0.41149]
[1730749719273,0.4115,2431.8,2431.7,0.41149]
[1730749720178,3.10614929,2431.8,2431.7,0.41149]
[1730749720380,0.4115,2431.8,2431.7,0.41149]
[1730749720575,44.92758,2431.9,2431.8,0.41148]
[1730749721075,44.0078,2431.9,2431.8,0.41148]
[1730749721275,44.41926,2431.9,2431.8,0.41148]
[1730749723982,41.21146,2431.9,2431.8,0.41148]
[1730749724278,44.41926,2431.9,2431.8,0.41148]
[1730749727069,44.0078,2431.9,2431.8,0.41148]
[1730749727274,2.69541326,2431.9,2431.7,1.02872]
[1730749727479,2.69541326,2432.0,2431.8,0.4933]
[1730749727671,3.61605326,2432.1,2432.0,0.41145]
[1730749727875,44.41562518,2432.1,2432.0,0.41145]
[1730749730275,41.72064,2432.1,2432.0,0.41145]
[1730749730679,44.41562518,2432.1,2432.0,0.41145]
[1730749732184,44.41561518,2432.1,2432.0,0.41145]
[1730749734584,44.00418518,2432.1,2432.0,0.41145]
[1730749734988,44.41561518,2432.1,2432.0,0.41145]
[1730749735488,44.00418518,2432.1,2432.0,0.41145]
[1730749736783,41.3092,2432.1,2432.0,0.41145]
[1730749737085,44.00418518,2432.1,2432.0,0.41145]
[1730749737284,41.72063,2432.1,2432.0,0.41145]
[1730749737481,41.3092,2432.1,2432.0,0.41145]
[1730749737683,41.72063,2432.1,2432.0,0.41145]
[1730749738187,44.41561518,2432.1,2432.0,0.41145]
[1730749738589,41.72063,2432.1,2432.0,0.41145]
[1730749739180,44.00418518,2432.1,2431.7,1.02872]
[1730749739380,0.41146,2432.0,2431.9,0.41145]
[1730749739994,40.8,2432.0,2431.6,1.4086]
[1730749740287,0.41151,2431.8,2431.7,0.41149]
[1730749740492,0.41151,2431.7,2431.6,0.41149]
[1730749740690,1.34251,2431.7,2431.6,0.41149]
[1730749740884,42.14251,2431.7,2431.6,0.41149]
[1730749741585,0.41154,2431.6,2431.5,0.41151]
[1730749741983,44.83748518,2431.7,2431.6,0.41151]
[1730749742292,44.42598518,2431.7,2431.6,0.41151]
[1730749742885,48.95028518,2431.7,2431.6,0.41151]
[1730749743388,44.83748518,2431.7,2431.6,0.41151]
[1730749743588,43.49498518,2431.7,2431.6,0.41151]
[1730749743894,48.01928518,2431.7,2431.6,0.41151]
[1730749744194,0.41151,2431.6,2431.5,0.4876]
[1730749744392,0.41153,2431.5,2431.4,0.41154]
[1730749744687,1.88983,2431.5,2431.4,0.41154]
[1730749744884,1.4783,2431.5,2431.4,0.41154]
[1730749745788,1.88983,2431.5,2431.4,0.41154]
[1730749746896,0.41156,2431.4,2431.3,0.41155]
[1730749747194,0.41159,2431.2,2431.1,0.41158]
[1730749747699,3.10656518,2431.3,2431.2,0.41157]
[1730749747892,0.41158,2431.3,2431.2,0.41157]
[1730749748091,2.69498518,2431.3,2431.2,0.41157]
[1730749748396,3.10654518,2431.3,2431.2,0.41157]
[1730749748891,6.31434518,2431.3,2431.2,0.41157]
[1730749749293,3.61936,2431.3,2431.2,0.41157]
[1730749749488,6.31434518,2431.3,2431.2,0.41157]
[1730749749796,5.90278518,2431.3,2431.2,0.41157]
[1730749749998,6.31434518,2431.3,2431.2,0.41157]
[1730749751598,5.90278518,2431.3,2431.2,0.41157]
[1730749751896,3.2078,2431.3,2431.2,0.41157]
[1730749752888,3.61936,2431.3,2431.2,0.41157]
[1730749753091,3.2078,2431.3,2431.2,0.41157]
[1730749753604,4.08872518,2431.5,2431.0,1.02904]
[1730749753901,4.08872518,2431.5,2431.4,0.41155]
[1730749754602,4.08872518,2431.5,2431.2,0.9621]
[1730749754603,0.41156,2431.4,2431.3,0.41155]
[1730749755004,3.10654518,2431.4,2431.3,0.41155]
[1730749755396,0.41156,2431.4,2431.3,0.41155]
[1730749756603,0.9822,2431.5,2431.4,0.41155]
[1730749756999,1.39373,2431.5,2431.4,0.41155]
[1730749757201,4.08871518,2431.5,2431.4,0.41155]
[1730749757405,1.39373,2431.5,2431.4,0.41155]
[1730749758204,4.08871518,2431.5,2431.4,0.41155]
[1730749758401,5.095,2431.5,2430.9,1.02906]
[1730749758601,5.095,2431.5,2431.1,0.41158]
[1730749758602,0.41159,2431.2,2431.1,0.41158]
[1730749759506,6.92885917,2431.3,2430.9,0.4719]
[1730749759710,0.41163,2431.0,2430.9,0.41162]
[1730749760019,1.41531,2431.1,2431.0,0.41162]
[1730749760200,1.4153,2431.1,2431.0,0.41162]
[1730749762498,1.0037,2431.1,2431.0,0.41162]
[1730749762703,4.09209,2431.2,2431.1,0.4116]
[1730749766211,3.2078,2431.2,2431.1,0.4116]
[1730749767525,3.61938,2431.2,2431.1,0.4116]
[1730749767706,3.2078,2431.2,2431.1,0.4116]
[1730749768601,3.61938,2431.2,2431.1,0.4116]
[1730749769712,0.41162,2431.1,2431.0,0.41161]
[1730749769909,0.41162,2431.0,2430.8,0.4719]
[1730749770105,0.41168,2430.7,2430.6,0.41166]
[1730749770402,0.4117,2430.5,2430.4,0.8843]
[1730749770607,1.4189,2430.6,2430.5,0.4117]
[1730749770804,42.2189,2430.6,2430.5,0.4117]
[1730749771013,45.4267,2430.6,2430.5,0.4117]
[1730749771614,45.015,2430.6,2430.4,0.4726]
[1730749771814,0.4117,2430.5,2430.4,0.41171]
[1730749772013,0.41173,2430.4,2430.3,0.41172]
[1730749773315,46.04423,2430.6,2429.9,4.2373]
[1730749773517,46.04423,2430.6,2430.2,0.41173]
[1730749773518,0.41175,2430.3,2430.2,0.41173]
[1730749775006,0.41175,2430.3,2430.2,0.41174]
[1730749775613,3.61955,2430.3,2430.2,0.41174]
[1730749779022,3.2078,2430.3,2430.2,0.41174]
[1730749779226,3.61953,2430.3,2430.2,0.41174]
[1730749780725,3.2078,2430.3,2430.0,1.02947]
[1730749780920,3.2078,2430.3,2430.2,0.41175]
[1730749783422,3.61953,2430.3,2430.2,0.41175]
[1730749784330,0.41173,2430.3,2430.2,0.41175]
[1730749784623,3.61953,2430.3,2430.2,0.41175]
[1730749784827,3.2078,2430.3,2430.2,0.41175]
[1730749787823,45.015,2430.6,2430.2,4.52695]
[1730749788128,45.015,2430.6,2430.5,0.4117]
[1730749789025,45.42668,2430.6,2430.5,0.4117]
[1730749789320,45.015,2430.6,2430.5,0.4117]
[1730749790421,45.42668,2430.6,2430.5,0.4117]
[1730749792527,44.5003,2430.6,2430.5,0.4117]
[1730749792723,41.2925,2430.6,2430.5,0.4117]
[1730749793623,40.8,2430.6,2430.5,0.4117]
[1730749797027,0.41172,2430.5,2430.4,0.4117]
[1730749800535,0.41176,2430.3,2430.2,0.41174]
[1730749800732,3.61956,2430.3,2430.2,0.41174]
[1730749801231,4.09676,2430.3,2430.2,0.41174]
[1730749802237,0.41177,2430.2,2430.1,0.41176]
[1730749803132,3.685,2430.3,2430.2,0.41175]
[1730749803333,4.09673,2430.3,2430.2,0.41175]
[1730749804037,3.685,2430.3,2430.2,0.41175]
[1730749804225,0.9539,2430.4,2430.1,0.4822]
[1730749804428,0.91661,2430.5,2430.4,0.41172]
[1730749804429,0.5049,2430.5,2430.4,0.41172]
[1730749805731,4.1492,2430.6,2430.5,0.4117]
[1730749807930,3.2078,2430.6,2430.5,0.4117]
[1730749809539,3.61948,2430.6,2430.5,0.4117]
[1730749809739,3.6746,2430.6,2430.5,0.4117]
[1730749810136,3.6746,2430.6,2430.3,0.4889]
[1730749810442,0.41175,2430.3,2430.2,0.41173]
[1730749810643,3.61955,2430.3,2430.2,0.41173]
[1730749811339,4.08635,2430.3,2430.2,0.41173]
[1730749812444,0.87855,2430.3,2430.2,0.41173]
[1730749812740,4.08635,2430.3,2430.2,0.41173]
[1730749813328,3.6746,2430.3,2430.2,0.41173]
[1730749813529,4.08633,2430.3,2430.2,0.41173]
[1730749814141,3.6746,2430.3,2430.2,0.41173]
[1730749814537,6.36984765,2430.3,2430.2,0.41173]
[1730749815234,5.90304765,2430.3,2430.2,0.41173]
[1730749815535,3.2078,2430.3,2430.2,0.41173]
[1730749817243,3.61953,2430.3,2430.2,0.41173]
[1730749818542,3.2078,2430.3,2430.2,0.41173]
[1730749819135,0.9625,2430.5,2430.4,0.41172]
[1730749819544,3.2078,2430.6,2430.5,0.4117]
[1730749819937,3.61948,2430.6,2430.5,0.4117]
[1730749820245,3.2078,2430.6,2430.5,0.4117]
[1730749821845,5.90316608,2430.6,2430.5,0.4117]
[1730749822042,3.2078,2430.6,2430.5,0.4117]
[1730749822542,3.61948,2430.6,2430.5,0.4117]
[1730749822740,3.2078,2430.6,2430.5,0.4117]
[1730749823445,2.6950542,2430.6,2430.5,0.4117]
[1730749827245,2.6950542,2430.6,2430.3,1.52892]
[1730749827246,43.9713542,2430.7,2430.6,0.41168]
[1730749827557,44.3830242,2430.7,2430.6,0.41168]
[1730749827748,41.68797,2430.7,2430.6,0.41168]
[1730749828144,44.38253691,2430.7,2430.6,0.41168]
[1730749828349,41.2763,2430.7,2430.6,0.41168]
[1730749828646,43.97087314,2430.7,2430.6,0.41168]
[1730749828850,43.49457314,2430.7,2430.6,0.41168]
[1730749829041,2.69457314,2430.9,2430.6,4.1144]
[1730749829246,2.69457314,2431.0,2430.9,0.41163]
[1730749829445,4.06676526,2431.1,2431.0,0.41162]
[1730749829753,3.65526515,2431.1,2431.0,0.41162]
[1730749830053,1.3725,2431.1,2431.0,0.41162]
[1730749830553,0.9609,2431.1,2431.0,0.41162]
[1730749830742,3.65454584,2431.1,2431.0,0.41162]
[1730749830943,4.06614584,2431.1,2431.0,0.41162]
[1730749831652,3.65454584,2431.1,2431.0,0.41162]
[1730749833553,0.9609,2431.1,2431.0,0.41162]
[1730749839050,1.3725,2431.1,2431.0,0.41162]
[1730749839958,4.5803,2431.1,2431.0,0.41162]
[1730749840255,0.9609,2431.1,2431.0,0.41162]
[1730749840458,0.9609,2431.1,2430.8,1.49062]
[1730749840459,0.4851,2431.2,2431.1,0.4116]
[1730749841050,0.4722,2431.3,2431.0,0.9318]
[1730749841357,0.4722,2431.3,2431.2,0.41158]
[1730749848861,0.88376,2431.3,2431.2,0.41158]
[1730749849063,0.4722,2431.3,2431.2,0.41158]
[1730749850664,0.88376,2431.3,2431.2,0.41158]
[1730749856059,3.57740584,2431.3,2431.2,0.41158]
[1730749856664,0.88376,2431.3,2431.2,0.41158]
[1730749857368,3.57740584,2431.3,2431.2,0.41158]
[1730749861162,0.88376,2431.3,2431.2,0.41158]
[1730749861362,0.4722,2431.3,2430.9,1.52747]
[1730749861567,3.10368548,2431.2,2431.1,0.41158]
[1730749862271,0.4116,2431.2,2431.1,0.41158]
[1730749862466,3.10402332,2431.2,2431.1,0.41158]
[1730749862869,0.41162,2431.1,2431.0,0.41162]
[1730749863165,0.41165,2430.9,2430.8,0.41163]
[1730749863372,3.61945,2430.9,2430.8,0.41163]
[1730749863572,4.12255,2430.9,2430.8,0.41163]
[1730749863869,6.81573741,2430.9,2430.8,0.41163]
[1730749864371,0.41168,2430.8,2430.7,0.41165]
[1730749864568,0.88218,2430.8,2430.7,0.41165]
[1730749865084,3.57536741,2430.8,2430.7,0.41165]
[1730749865260,0.41168,2430.7,2430.6,0.41167]
[1730749865465,2.69330897,2430.7,2430.5,0.4716]
[1730749865773,3.6819,2430.6,2430.5,0.88329]
[1730749865974,6.37520897,2430.6,2430.5,0.88329]
[1730749866769,5.90110897,2430.6,2430.5,0.88329]
[1730749866969,3.10497897,2430.7,2430.5,0.4716]
[1730749867168,3.10497897,2430.7,2430.6,0.41168]
[1730749867373,0.41167,2430.7,2430.6,0.41168]
[1730749867575,3.10480887,2430.7,2430.6,0.41168]
[1730749867874,0.4705,2430.8,2430.7,0.41167]
[1730749868263,0.4705,2430.8,2430.7,4.52527]
[1730749868460,0.88215,2430.8,2430.7,4.52527]
[1730749868772,0.88215,2430.8,2430.7,0.41167]
[1730749869467,0.4705,2430.8,2430.0,5.14624024]
[1730749869673,0.41171,2430.5,2430.4,0.4117]
[1730749869973,3.10538339,2430.5,2430.4,0.4117]
[1730749870169,3.57208339,2430.5,2430.4,0.4117]
[1730749870966,3.16037339,2430.5,2430.4,0.4117]
[1730749871365,3.16827339,2430.6,2430.3,0.4738]
[1730749871573,2.69367339,2430.5,2430.4,0.89012]
[1730749872272,3.6824,2430.6,2430.4,0.89012]
[1730749872273,6.37607339,2430.6,2430.5,0.4117]
[1730749872669,6.37607339,2430.6,2430.5,0.8742]
[1730749873074,6.78775339,2430.6,2430.5,0.8742]
[1730749873273,6.37607339,2430.6,2430.5,0.8742]
[1730749873770,6.78775339,2430.6,2430.5,0.8742]
[1730749874071,6.37607339,2430.6,2430.5,0.8742]
[1730749874267,6.78775339,2430.6,2430.5,0.8742]
[1730749874469,6.37607339,2430.6,2430.5,0.8742]
[1730749874767,6.78775339,2430.6,2430.5,0.8742]
[1730749876071,0.41174,2430.4,2430.0,4.23724]
[1730749876267,0.41174,2430.4,2430.2,0.41174]
[1730749876268,0.41175,2430.3,2430.2,0.41174]
[1730749876473,0.41177,2430.1,2430.0,3.2078]
[1730749876672,0.41177,2430.1,2430.0,3.61959]
[1730749876866,41.21177,2430.1,2430.0,3.61959]
[1730749877068,41.69207,2430.1,2430.0,3.61959]
[1730749877664,44.4881,2430.1,2429.8,1.54341347]
[1730749877865,0.4118,2429.9,2429.8,1.07491347]
[1730749878272,4.527,2429.9,2429.8,1.07491347]